bitfinex/quotes_ETHUSD_20250415
["timestamp","ask_amount","ask_price","bid_price","bid_amount"]
[1744679400159,6.94025,1618.1,1617.7,6.18145]
[1744679400360,6.18061,1618.0,1617.6,6.18197]
[1744679400560,1.453925,1618.1,1617.3,6.96484]
[1744679400799,0.8253,1617.6,1617.1,7.00148]
[1744679400969,6.18372,1617.2,1616.9,0.8178]
[1744679401171,6.18477,1616.9,1616.6,7.00344]
[1744679401404,6.18508,1616.8,1616.6,0.8178]
[1744679401616,0.8253,1617.1,1616.7,6.18531]
[1744679401823,6.18431,1617.0,1616.6,7.00358]
[1744679402126,6.18471,1616.9,1616.6,7.00358]
[1744679402343,6.14,1617.3,1616.8,6.18505]
[1744679402505,6.94363,1617.6,1617.0,6.18426]
[1744679402825,6.18253,1617.5,1617.1,6.18366]
[1744679403026,6.94375,1617.6,1617.2,12.36661]
[1744679403332,6.18252,1617.5,1617.0,6.18414]
[1744679403625,6.18252,1617.5,1617.1,12.36752]
[1744679403815,6.18252,1617.5,1617.2,6.18352]
[1744679404019,6.18252,1617.5,1617.1,6.18372]
[1744679404632,6.18252,1617.5,1617.1,12.3675]
[1744679405334,6.18288,1617.4,1617.0,6.18409]
[1744679405496,6.18238,1617.5,1617.1,6.18368]
[1744679405831,6.18279,1617.4,1617.1,6.18368]
[1744679406126,6.18238,1617.5,1617.1,6.18368]
[1744679406334,6.18238,1617.5,1617.2,6.18347]
[1744679406627,12.36503,1617.5,1617.1,6.18368]
[1744679406832,6.18238,1617.5,1617.1,12.36741]
[1744679407033,6.18238,1617.5,1616.9,0.7867]
[1744679407034,0.8053,1617.4,1616.9,0.7867]
[1744679407241,6.18429,1617.0,1616.7,13.23718]
[1744679407436,6.18394,1617.1,1616.8,6.18505]
[1744679407592,6.18468,1616.9,1616.7,0.8048]
[1744679407797,6.18505,1616.8,1616.5,6.99093]
[1744679408740,6.18505,1616.8,1616.5,0.8048]
[1744679408945,0.808,1616.7,1616.2,0.8232]
[1744679409130,0.808,1616.7,1616.4,6.18631]
[1744679409312,6.18518,1616.8,1616.4,12.37277]
[1744679409507,7.055,1616.9,1616.3,6.18695]
[1744679409712,12.37152,1616.7,1616.3,6.18695]
[1744679410413,12.37139,1616.7,1616.3,6.18682]
[1744679410612,6.18604,1616.6,1616.2,7.01048]
[1744679410820,6.18678,1616.4,1616.0,0.7837]
[1744679411026,6.1871,1616.3,1616.0,0.7837]
[1744679411228,12.37433,1616.3,1616.0,0.7837]
[1744679411633,6.18666,1616.4,1616.0,0.7837]
[1744679411840,1.236782,1617.1,1616.2,6.18707]
[1744679412035,13.13656,1617.0,1616.6,6.18578]
[1744679412331,12.43166,1617.2,1616.8,6.18484]
[1744679412549,6.95057,1617.3,1616.9,6.18452]
[1744679412910,7.419004,1617.5,1617.1,6.18377]
[1744679413106,6.18284,1617.4,1617.1,6.18377]
[1744679413331,6.18328,1617.3,1617.0,6.18423]
[1744679413525,7.0485,1617.6,1617.1,6.18372]
[1744679413720,13.23066,1617.6,1617.2,6.18327]
[1744679414149,6.1825,1617.5,1617.2,6.18327]
[1744679414317,6.1825,1617.5,1617.1,12.36774]
[1744679414817,6.1825,1617.5,1617.1,6.18387]
[1744679415512,6.183,1617.4,1617.0,6.18423]
[1744679415744,6.183,1617.4,1617.0,12.36839]
[1744679415941,6.183,1617.4,1617.0,6.1841]
[1744679416147,6.18282,1617.4,1617.1,6.18379]
[1744679416648,6.18243,1617.5,1617.1,12.36754]
[1744679416945,6.18256,1617.5,1617.1,8.228024]
[1744679417143,6.18298,1617.4,1617.0,6.18409]
[1744679417447,6.18243,1617.5,1616.9,0.8075]
[1744679417639,6.18243,1617.5,1617.2,6.18348]
[1744679417945,12.43111,1617.6,1617.3,6.18306]
[1744679418149,6.249,1617.6,1617.3,6.18306]
[1744679418349,0.7799,1617.8,1617.5,6.18201]
[1744679418514,6.96117,1617.8,1617.5,6.18201]
[1744679418714,6.18119,1617.9,1617.5,12.36422]
[1744679418953,12.36226,1617.9,1617.5,6.18201]
[1744679419322,6.18107,1617.9,1617.5,6.18201]
[1744679419525,6.95977,1618.2,1617.6,0.86932061]
[1744679419732,6.95977,1618.2,1617.9,6.1807]
[1744679420054,0.05,1618.4,1618.1,6.17991]
[1744679420552,0.05,1618.4,1618.0,0.8075]
[1744679420752,0.05,1618.4,1618.1,6.17994]
[1744679420921,6.22911,1618.4,1618.1,6.17994]
[1744679421262,0.05,1618.4,1618.1,12.35984]
[1744679421761,0.05,1618.4,1618.0,0.8075]
[1744679421939,0.05,1618.4,1618.3,6.17932]
[1744679422746,0.05,1618.4,1618.3,6.94942]
[1744679423133,0.05,1618.4,1618.3,13.22742]
[1744679423953,0.05,1618.4,1618.3,16.22742]
[1744679425267,6.9588,1619.2,1618.9,6.17693]
[1744679425445,6.1759,1619.2,1618.9,6.17693]
[1744679425644,12.45357,1619.3,1618.9,6.17693]
[1744679425843,6.17557,1619.3,1619.0,6.17658]
[1744679426150,7.03414,1619.4,1619.0,12.35308]
[1744679426344,6.22514,1619.4,1619.1,6.17619]
[1744679426545,0.05,1619.4,1619.2,6.9980746]
[1744679426745,0.05,1619.4,1619.3,6.1755]
[1744679426953,0.05,1619.4,1619.2,6.93632]
[1744679427268,0.05,1619.4,1619.2,8.247545]
[1744679427579,0.05,1619.4,1619.3,6.2372481]
[1744679427748,0.05,1619.4,1619.2,2.071855]
[1744679427949,0.05,1619.4,1619.2,8.30928428]
[1744679428258,0.05,1619.4,1619.2,8.247535]
[1744679428566,0.05,1619.4,1619.2,8.30928429]
[1744679428770,0.05,1619.4,1619.2,8.247535]
[1744679429067,0.05,1619.4,1619.2,2.071855]
[1744679429269,0.05,1619.4,1619.1,6.274]
[1744679429472,0.05,1619.4,1619.1,12.45004]
[1744679430172,0.05,1619.4,1619.1,18.62614]
[1744679430372,0.05,1619.4,1619.1,12.45004]
[1744679430674,6.17562,1619.3,1619.0,0.7681]
[1744679430870,0.05,1619.4,1619.0,0.7681]
[1744679431071,0.05,1619.4,1619.2,6.17588]
[1744679431270,0.25779263,1619.3,1619.2,6.17588]
[1744679431482,0.05,1619.4,1619.3,6.1755]
[1744679431776,0.30864358,1619.4,1619.2,6.17588]
[1744679432383,0.30864358,1619.4,1619.2,13.586862]
[1744679432694,0.30864358,1619.4,1619.3,6.9873]
[1744679434960,0.05,1619.4,1619.3,6.9873]
[1744679435352,0.30903034,1619.4,1619.3,6.9873]
[1744679435955,0.05,1619.4,1619.3,6.9873]
[1744679436187,0.05,1619.4,1619.3,9.0544242]
[1744679436394,0.30903034,1619.4,1619.3,9.0544242]
[1744679436599,0.05,1619.4,1619.3,9.0544242]
[1744679436984,0.30903034,1619.4,1619.3,9.0544242]
[1744679437272,0.05,1619.4,1619.3,9.0544242]
[1744679437981,0.31777301,1619.4,1619.3,9.0544242]
[1744679438176,0.05,1619.4,1619.3,9.0544242]
[1744679438712,0.31777301,1619.4,1619.3,9.0544242]
[1744679439004,0.05,1619.4,1619.3,9.0544242]
[1744679439366,0.31777301,1619.4,1619.3,9.0544242]
[1744679440877,0.31777301,1619.4,1619.3,9.50724424]
[1744679442169,0.31777301,1619.4,1619.3,12.50724424]
[1744679442369,0.05,1619.4,1619.3,12.50724424]
[1744679442570,0.31993842,1619.4,1619.3,12.50724424]
[1744679442772,0.05,1619.4,1619.3,12.50724424]
[1744679442989,0.31993842,1619.4,1619.3,12.50724424]
[1744679443199,0.05,1619.4,1619.3,12.50724424]
[1744679443398,0.05,1619.4,1619.3,12.80757864]
[1744679443900,0.31993842,1619.4,1619.3,12.50724424]
[1744679444415,0.31993842,1619.4,1619.3,9.50724424]
[1744679444598,0.05,1619.4,1619.1,0.8074]
[1744679444771,7.01515,1619.4,1619.0,12.353]
[1744679444967,6.17563,1619.3,1619.1,4.0]
[1744679445272,0.26885581,1619.3,1619.0,6.17651]
[1744679445501,13.19033,1619.4,1619.0,12.35304]
[1744679445693,0.26885581,1619.2,1619.0,6.17651]
[1744679445874,6.17552,1619.3,1619.0,6.17651]
[1744679446192,0.26885581,1619.2,1619.1,6.17627]
[1744679446507,7.01494,1619.4,1619.1,6.17627]
[1744679446805,0.05,1619.4,1619.1,1.235278]
[1744679446989,0.26885581,1619.3,1618.9,56.449768]
[1744679447305,0.05,1619.4,1618.9,55.642328]
[1744679447483,0.26885581,1619.2,1618.9,55.642328]
[1744679447879,0.26885581,1619.2,1619.0,6.17636]
[1744679448186,6.17551,1619.3,1619.0,6.17636]
[1744679448495,12.3513,1619.3,1619.0,5.5641758]
[1744679448684,0.26885581,1619.2,1619.0,5.5641758]
[1744679448883,0.26885581,1619.2,1619.0,11.7407658]
[1744679449088,0.05,1619.4,1619.1,6.17627]
[1744679449405,0.26290047,1619.3,1619.1,6.17601]
[1744679449592,0.26290047,1619.3,1619.2,0.617601]
[1744679450204,6.22512,1619.4,1619.3,6.1755]
[1744679450205,0.05,1619.4,1619.3,6.1755]
[1744679450404,0.05,1619.4,1619.2,6.793311]
[1744679450796,6.22525,1619.4,1619.2,0.617601]
[1744679451109,0.05,1619.4,1619.2,0.617601]
[1744679451468,0.05,1619.4,1619.2,6.793471]
[1744679451772,0.05,1619.4,1619.3,6.91659503]
[1744679451971,0.05,1619.4,1619.3,6.8548471]
[1744679453191,0.05,1619.4,1619.3,0.6793471]
[1744679453398,0.05,1619.4,1619.2,0.617601]
[1744679454409,0.05,1619.4,1619.2,12.969151]
[1744679455212,0.05,1619.4,1619.3,6.1755]
[1744679455513,0.05,1619.4,1619.3,6.23724556]
[1744679455698,0.05,1619.4,1619.3,6.1755]
[1744679455898,0.05,1619.4,1619.3,8.0899561]
[1744679457114,0.05,1619.4,1619.3,1.9144561]
[1744679457318,0.05,1619.4,1619.3,6.1755]
[1744679457519,0.05,1619.4,1619.2,6.793341]
[1744679458111,0.05,1619.4,1619.2,13.03081787]
[1744679458290,0.05,1619.4,1619.2,6.793331]
[1744679458492,0.05,1619.4,1619.2,13.03080787]
[1744679458691,0.05,1619.4,1619.2,6.793331]
[1744679459518,0.05,1619.4,1619.3,6.1755]
[1744679459713,0.05,1619.4,1619.3,7.47855779]
[1744679459916,0.05,1619.4,1619.3,6.23724494]
[1744679460226,0.05,1619.4,1619.3,6.1755]
[1744679461097,0.05,1619.4,1619.2,6.793331]
[1744679461296,0.05,1619.4,1619.2,12.969091]
[1744679462428,0.05,1619.4,1619.1,6.115]
[1744679462723,7.04587,1619.4,1619.1,6.17621]
[1744679462927,13.22123,1619.4,1619.1,6.17621]
[1744679463104,13.22123,1619.4,1619.0,12.35312]
[1744679463519,7.04587,1619.4,1619.1,6.17626]
[1744679463736,0.8706,1619.4,1619.2,6.17588]
[1744679463935,0.05,1619.4,1619.3,6.1755]
[1744679464229,0.7863,1620.0,1619.8,6.17328]
[1744679464531,6.165,1620.4,1620.1,6.17245]
[1744679464532,0.8363,1620.4,1620.1,6.17245]
[1744679464716,0.05,1620.4,1620.2,6.23362421]
[1744679465033,6.95816,1620.3,1619.9,6.17309]
[1744679465607,6.17211,1620.2,1619.9,6.17309]
[1744679465832,6.17265,1620.1,1619.7,6.93616]
[1744679465991,12.34535,1620.1,1619.7,8.90532307]
[1744679466336,6.17265,1620.1,1619.8,6.17359]
[1744679466529,0.7863,1620.3,1619.7,2.73146307]
[1744679466530,13.13006,1620.3,1619.7,2.73146307]
[1744679466732,6.17208,1620.2,1619.9,6.23492444]
[1744679467832,6.17212,1620.2,1619.7,15.07923307]
[1744679467994,6.17267,1620.1,1619.7,13.10989]
[1744679468325,6.867942,1620.2,1619.9,6.17318]
[1744679468508,6.1721,1620.2,1619.9,6.17318]
[1744679468833,6.17248,1620.1,1619.8,6.17358]
[1744679469013,6.17248,1620.1,1619.8,6.17353]
[1744679469207,6.1721,1620.2,1619.9,6.17319]
[1744679469408,0.7863,1620.3,1619.9,0.06172413]
[1744679469608,0.05,1620.4,1620.1,6.92521]
[1744679469920,12.39327,1620.4,1620.0,6.17282]
[1744679470120,6.22159,1620.4,1620.0,7.79165561]
[1744679470323,6.22159,1620.4,1620.1,0.06171693]
[1744679470623,0.05,1620.4,1620.1,6.23416693]
[1744679470825,0.05,1620.4,1620.2,12.34375]
[1744679471502,0.05,1620.4,1620.3,0.06170936]
[1744679471703,0.05,1620.4,1620.3,8.2386453]
[1744679471916,0.05,1620.4,1620.3,8.17693594]
[1744679473143,0.05,1620.4,1620.3,11.26757204]
[1744679474114,0.05,1620.4,1620.3,11.32926537]
[1744679474445,1e-05,1620.4,1620.3,14.32926537]
[1744679474644,1e-05,1620.4,1620.3,14.26757204]
[1744679475049,4.47468064,1621.3,1621.0,6.169]
[1744679475251,4.47468064,1621.3,1621.0,6.16903]
[1744679475546,0.26046452,1621.2,1621.0,6.16903]
[1744679475850,0.26046452,1621.2,1620.9,6.99939]
[1744679476050,0.26046452,1621.2,1620.9,7.699329]
[1744679476348,12.59753452,1621.2,1620.8,6.16975]
[1744679476547,6.42893452,1621.2,1620.8,6.16975]
[1744679476752,6.42893452,1621.2,1620.9,0.06168435]
[1744679476954,0.26046452,1621.2,1620.9,0.06168435]
[1744679477142,0.26046452,1621.2,1621.0,6.16884]
[1744679477339,0.26046452,1621.2,1620.9,12.33855]
[1744679477522,0.26046452,1621.2,1621.0,6.169]
[1744679477849,0.26046452,1621.2,1621.1,6.16865]
[1744679478641,6.42876452,1621.2,1620.8,6.16979]
[1744679478845,6.16879,1621.1,1620.7,13.04856]
[1744679479045,6.16879,1621.1,1620.7,13.04837]
[1744679479254,6.16906,1621.0,1620.7,13.04837]
[1744679479423,6.42952452,1621.0,1620.7,6.112]
[1744679480030,0.26046452,1621.0,1620.9,6.16941]
[1744679480332,0.4022745,1621.3,1621.2,6.16827]
[1744679481416,0.4022745,1621.3,1621.0,6.16891]
[1744679481624,1.1922745,1621.3,1621.0,6.16891]
[1744679481822,7.3602845,1621.3,1621.0,6.16891]
[1744679482231,0.4022745,1621.3,1621.0,1.311547]
[1744679482434,0.4022745,1621.3,1621.1,6.16845]
[1744679482632,0.4022745,1621.3,1620.8,6.63724981]
[1744679482835,6.16861,1621.2,1620.8,6.63724981]
[1744679483031,6.16861,1621.2,1620.9,0.06168234]
[1744679483324,6.5702045,1621.3,1620.9,6.16928]
[1744679483522,6.16829,1621.2,1620.9,6.16928]
[1744679483723,12.7384345,1621.3,1620.9,6.16928]
[1744679483938,12.7384345,1621.3,1621.0,0.06168132]
[1744679484137,0.7603,1621.2,1620.7,6.112]
[1744679484454,6.16922,1621.0,1620.7,6.112]
[1744679484624,12.33849,1621.0,1620.7,6.112]
[1744679484827,6.9286,1621.2,1620.9,6.16939]
[1744679485026,13.09708,1621.2,1620.8,6.16964]
[1744679485227,6.9286,1621.2,1620.8,12.33926]
[1744679485432,13.09708,1621.2,1620.8,6.16962]
[1744679485626,13.09708,1621.2,1620.8,6.1696]
[1744679485961,6.9286,1621.2,1620.9,6.16938]
[1744679486162,0.7603,1621.2,1620.9,6.23093395]
[1744679486567,6.92866,1621.2,1620.9,0.06168395]
[1744679487064,0.7603,1621.2,1621.0,6.16885]
[1744679487265,0.4022745,1621.3,1621.2,6.16827]
[1744679487467,0.4022745,1621.3,1621.2,6.96777]
[1744679487765,0.4022745,1621.3,1621.2,9.96777]
[1744679488130,0.60928382,1621.3,1621.2,9.96777]
[1744679488336,0.60928382,1621.3,1621.2,12.49745861]
[1744679488549,0.60928382,1621.3,1621.2,9.49745861]
[1744679488750,0.4022745,1621.3,1621.2,9.49745861]
[1744679488956,0.60928382,1621.3,1621.2,9.49745861]
[1744679489156,0.60928382,1621.3,1621.1,12.23849]
[1744679489360,0.60928382,1621.3,1621.2,6.16827]
[1744679489929,0.60928382,1621.3,1621.1,12.23849]
[1744679490130,0.60928382,1621.3,1621.1,12.23847]
[1744679490870,0.60928382,1621.3,1621.2,6.16827]
[1744679491072,0.05,1621.4,1621.2,8.808444]
[1744679491258,6.92581,1622.3,1621.6,6.16674]
[1744679491572,6.92581,1622.3,1621.7,6.16629]
[1744679491869,0.8209,1621.8,1621.5,12.23606]
[1744679492243,6.98701,1621.8,1621.5,6.069]
[1744679492472,0.8209,1621.8,1621.6,6.16672]
[1744679492668,6.1654,1622.0,1621.6,6.16659]
[1744679493173,6.16566,1621.9,1621.6,6.16659]
[1744679493752,12.33085,1622.0,1621.6,6.16659]
[1744679494075,13.642055,1622.0,1621.6,12.33316]
[1744679494377,6.16611,1621.8,1621.5,6.16709]
[1744679495569,0.7983,1621.8,1621.3,6.069]
[1744679495774,12.33418,1621.6,1621.3,6.069]
[1744679495975,6.16709,1621.6,1621.2,12.3363]
[1744679496174,6.16697,1621.6,1621.2,6.16809]
[1744679496369,6.16697,1621.6,1621.2,12.33619]
[1744679496676,12.33395,1621.6,1621.2,6.63204327]
[1744679496849,12.33395,1621.6,1621.2,12.80018327]
[1744679497047,12.33395,1621.6,1621.2,6.63204327]
[1744679497443,6.96064,1621.5,1621.2,0.46395327]
[1744679497751,6.16676,1621.6,1621.0,9.2596661]
[1744679497951,6.16674,1621.6,1621.2,6.16804]
[1744679498155,6.99094,1621.7,1621.2,6.16797]
[1744679498355,6.16675,1621.6,1621.2,12.33599]
[1744679498790,0.16265325,1621.5,1621.2,12.33599]
[1744679499586,0.16265325,1621.5,1621.2,6.16797]
[1744679499790,0.16265325,1621.5,1621.4,6.1675]
[1744679500079,0.8245,1621.7,1621.5,6.16708]
[1744679500251,0.8206,1621.9,1621.6,12.33329]
[1744679500447,6.16637,1621.7,1621.4,6.16734]
[1744679500647,6.98627,1621.9,1621.5,6.167]
[1744679500864,13.15215,1621.9,1621.5,6.16696]
[1744679501076,6.16599,1621.8,1621.5,6.16696]
[1744679502281,13.15216,1621.9,1621.5,6.16696]
[1744679502585,12.3323,1621.8,1621.5,6.16696]
[1744679503179,0.8206,1621.9,1621.3,15.3261861]
[1744679503480,0.8206,1621.9,1621.6,12.33318]
[1744679503653,0.8206,1621.9,1621.7,0.06165569]
[1744679503856,0.8206,1621.9,1621.7,6.22800569]
[1744679504560,13.15197,1622.3,1621.9,6.16545]
[1744679504755,0.8236,1622.3,1622.0,6.16502]
[1744679504955,0.05,1622.4,1622.1,6.16471]
[1744679505159,0.05,1622.4,1622.2,12.39024882]
[1744679505394,0.05,1622.4,1622.3,6.16408]
[1744679505558,0.05,1622.4,1621.9,10.6990111]
[1744679505559,0.05,1622.4,1622.1,6.16483]
[1744679506264,0.05,1622.4,1622.1,6.1647]
[1744679506455,0.05,1622.4,1622.2,6.16431]
[1744679506650,0.05,1622.4,1622.1,6.16481]
[1744679506873,6.21403,1622.4,1622.0,6.16519]
[1744679507055,6.21403,1622.4,1622.0,6.16505]
[1744679507255,6.16422,1622.3,1622.0,6.16505]
[1744679507458,13.08284,1622.2,1621.8,6.16585]
[1744679507677,6.16499,1622.1,1621.7,22.2818461]
[1744679507885,6.918,1622.2,1621.7,6.068]
[1744679508193,6.16573,1621.9,1621.6,6.61885749]
[1744679508686,6.16599,1621.8,1621.6,0.45211749]
[1744679508989,6.16599,1621.8,1621.5,6.8587]
[1744679509189,6.16599,1621.8,1621.5,14.945153]
[1744679509886,0.7535,1621.9,1621.8,6.16598]
[1744679510068,0.7535,1621.9,1621.5,3.0906361]
[1744679510269,0.89700716,1621.9,1621.6,12.33319]
[1744679511489,0.89700716,1621.9,1621.6,6.16656]
[1744679511895,0.14350716,1621.9,1621.6,1.54242961]
[1744679512087,0.14350716,1621.9,1621.7,6.2278247]
[1744679512288,6.94002,1622.1,1621.7,6.2278247]
[1744679512488,0.14172511,1621.8,1621.7,6.2278247]
[1744679512691,6.16526,1622.0,1621.7,6.2278247]
[1744679513069,0.14172511,1621.9,1621.7,6.2278247]
[1744679514269,0.14172511,1621.9,1621.5,9.2577261]
[1744679514473,6.30741511,1621.9,1621.5,0.92577261]
[1744679514672,12.33148,1621.9,1621.6,6.16657]
[1744679514874,0.14420481,1621.8,1621.5,12.33412]
[1744679515170,12.33148,1621.9,1621.5,12.33412]
[1744679515384,0.14420481,1621.7,1621.5,12.33412]
[1744679515584,0.14420481,1621.7,1621.5,6.16706]
[1744679515785,0.14420481,1621.7,1621.5,6.783766]
[1744679515966,7.06854481,1621.7,1621.4,6.16736]
[1744679516174,6.16707,1621.6,1621.3,6.16787]
[1744679516505,0.14358492,1621.6,1621.5,6.16712]
[1744679516675,0.14358492,1621.6,1621.4,12.33471]
[1744679516870,0.7579,1621.7,1621.4,13.568181]
[1744679517071,0.14211245,1621.5,1621.4,13.568181]
[1744679517289,0.7579,1621.7,1621.4,13.568181]
[1744679517501,0.14211245,1621.5,1621.4,13.568181]
[1744679517725,0.7579,1621.7,1621.4,13.568181]
[1744679517901,0.14211245,1621.5,1621.4,13.568181]
[1744679518082,6.97933,1621.9,1621.5,12.33376]
[1744679518493,6.16655,1621.7,1621.4,7.400911]
[1744679518701,12.33325,1621.7,1621.4,1.233471]
[1744679518909,6.16676,1621.6,1621.3,6.16777]
[1744679519274,6.16676,1621.6,1621.2,12.2352]
[1744679519584,6.16676,1621.6,1621.3,6.16785]
[1744679519779,12.33295,1621.7,1621.3,12.3357]
[1744679519978,0.14249998,1621.5,1621.4,0.06166772]
[1744679520182,6.16645,1621.7,1621.4,6.22896772]
[1744679520381,0.14249998,1621.5,1621.2,12.23519]
[1744679520598,0.7791,1621.5,1621.1,0.8111]
[1744679520798,6.16819,1621.3,1620.9,0.7867]
[1744679521007,6.31007998,1621.4,1621.0,6.23069891]
[1744679521319,0.14149236,1621.2,1621.0,6.16902]
[1744679521571,0.14149236,1621.1,1620.8,6.16963]
[1744679521850,6.16832,1621.2,1620.8,16.31063753]
[1744679522046,0.14149236,1621.0,1620.9,6.23108219]
[1744679522253,13.06637,1621.5,1621.1,6.16836]
[1744679522403,6.16801,1621.3,1621.0,6.16902]
[1744679522831,6.16773,1621.4,1621.0,6.16884]
[1744679523018,6.16793,1621.3,1621.0,6.785724]
[1744679523547,6.16773,1621.4,1620.8,10.14112753]
[1744679523548,6.16871,1621.1,1620.8,10.14112753]
[1744679523908,6.16916,1621.0,1620.8,0.97152753]
[1744679524337,6.93811,1621.1,1620.7,6.93313]
[1744679524845,6.98777,1621.3,1620.9,12.33848]
[1744679525003,6.98772,1621.3,1620.9,12.33848]
[1744679525203,0.8196,1621.3,1620.8,6.16977]
[1744679525453,6.16868,1621.1,1620.8,6.16977]
[1744679525603,6.16868,1621.1,1620.8,1.61936161]
[1744679525805,6.16904,1621.0,1620.6,18.4609]
[1744679526001,6.16904,1621.0,1620.6,12.29038]
[1744679526507,12.33828,1621.0,1620.7,6.17011]
[1744679526747,6.16974,1620.9,1620.6,6.12]
[1744679526953,13.11614,1620.9,1620.6,6.12]
[1744679527251,13.11614,1620.9,1620.6,12.2649596]
[1744679527556,6.16865,1621.1,1620.6,12.2649596]
[1744679527557,6.1687,1621.1,1620.6,12.2649596]
[1744679527708,6.16844,1621.2,1620.8,6.16962]
[1744679527912,6.16876,1621.1,1620.7,12.34013]
[1744679528114,12.3376,1621.1,1620.7,12.34013]
[1744679528339,12.33762,1621.1,1620.8,1.234013]
[1744679528756,12.33762,1621.1,1620.7,6.17002]
[1744679528911,12.33765,1621.1,1620.7,12.34003]
[1744679529110,6.16876,1621.1,1620.7,12.34002]
[1744679529310,6.16903,1621.0,1620.7,6.17001]
[1744679529923,13.12275,1621.1,1620.7,12.34005]
[1744679530132,6.95386,1621.1,1620.8,1.234005]
[1744679530307,0.7851,1621.1,1620.6,12.2649596]
[1744679530514,0.7851,1621.1,1620.8,12.3391]
[1744679530847,0.7851,1621.1,1620.8,6.16952]
[1744679531059,6.95388,1621.1,1620.7,6.1701]
[1744679531850,6.95388,1621.1,1620.7,12.3401]
[1744679532052,0.7554,1621.3,1620.8,2.00561]
[1744679532346,0.11751694,1621.2,1621.1,6.1683]
[1744679532759,13.04264,1621.5,1621.1,12.33665]
[1744679532936,0.11728461,1621.2,1621.1,13.16515]
[1744679533144,0.8064,1622.0,1621.7,6.16619]
[1744679533335,4.07240614,1622.1,1621.9,6.16524]
[1744679534241,4.07240614,1622.1,1621.8,6.16585]
[1744679534429,6.16503,1622.1,1621.7,6.16634]
[1744679534629,0.11728461,1622.0,1621.8,6.16597]
[1744679534942,0.794,1622.3,1621.7,4.30663761]
[1744679535140,0.11728461,1621.9,1621.7,3.0]
[1744679535340,6.16542,1622.0,1621.6,6.976]
[1744679535533,0.11728461,1621.8,1621.5,18.45616]
[1744679535743,12.32935,1622.2,1621.8,6.16584]
[1744679535911,12.32935,1622.2,1621.8,6.22749109]
[1744679536110,6.16489,1622.1,1621.8,6.22749109]
[1744679536583,7.397605,1622.2,1621.8,6.22747109]
[1744679536785,6.16413,1622.3,1622.0,6.16506]
[1744679537941,6.16413,1622.3,1621.9,12.3311]
[1744679538140,0.05,1622.4,1622.1,6.16452]
[1744679538449,0.05,1622.4,1622.1,12.9518462]
[1744679538974,0.05,1622.4,1622.1,12.9517962]
[1744679539171,0.05,1622.4,1622.2,6.16433]
[1744679539476,6.16414,1622.3,1622.0,6.16519]
[1744679540243,6.16414,1622.3,1621.9,13.1107]
[1744679540450,6.16414,1622.3,1621.9,14.77600408]
[1744679540657,6.16414,1622.3,1621.9,20.94160408]
[1744679541152,6.16414,1622.3,1622.0,6.16518]
[1744679541355,6.16447,1622.2,1621.9,6.9451]
[1744679541569,6.16447,1622.2,1621.8,12.33159]
[1744679541775,12.32856,1622.3,1621.9,6.16557]
[1744679542459,6.1645,1622.2,1621.9,6.16557]
[1744679543193,6.16416,1622.3,1622.0,0.06164553]
[1744679543599,6.16449,1622.2,1621.9,6.16543]
[1744679544786,6.16416,1622.3,1621.9,12.33087]
[1744679545162,6.16416,1622.3,1622.0,6.16516]
[1744679545366,12.32845,1622.3,1622.0,6.16516]
[1744679545578,12.32845,1622.3,1622.0,6.22680519]
[1744679545779,6.16416,1622.3,1622.0,6.22680519]
[1744679545977,12.32843,1622.3,1622.0,6.22680519]
[1744679546380,12.32843,1622.3,1621.9,13.7253769]
[1744679546584,12.32843,1622.3,1621.9,7.5598969]
[1744679547303,6.16447,1622.2,1621.9,6.16543]
[1744679547690,6.21374,1622.4,1622.0,6.22658519]
[1744679547894,0.05,1622.4,1622.1,6.16469]
[1744679548283,0.05,1622.4,1622.3,9.95678]
[1744679548481,1.2203745,1623.0,1622.9,6.1618]
[1744679548686,0.53709528,1623.0,1622.8,13.15346]
[1744679548883,0.53709528,1623.0,1622.6,15.2495361]
[1744679548884,6.162,1622.9,1622.6,0.8294]
[1744679549124,6.162,1622.9,1622.5,6.16316]
[1744679549125,6.29682078,1622.9,1622.5,6.16297]
[1744679549291,6.16247,1622.8,1622.4,6.16363]
[1744679549489,0.13854158,1622.7,1622.4,6.16349]
[1744679549712,0.13854158,1622.7,1622.3,6.16377]
[1744679549923,0.13854158,1622.7,1622.4,12.32712]
[1744679550090,6.16242,1622.8,1622.5,6.16327]
[1744679550282,6.16242,1622.8,1622.4,12.32708]
[1744679550489,6.16302,1622.6,1622.3,6.16406]
[1744679550688,6.16271,1622.7,1622.3,12.32812]
[1744679550890,0.13885154,1622.6,1622.3,12.32812]
[1744679551101,6.16271,1622.7,1622.3,12.32812]
[1744679551312,0.13885154,1622.5,1622.3,12.32812]
[1744679551510,6.16226,1622.8,1622.4,7.45813973]
[1744679551687,6.16276,1622.7,1622.3,6.62505803]
[1744679551891,0.13885154,1622.6,1622.3,6.62493803]
[1744679552087,6.16276,1622.7,1622.3,12.78887803]
[1744679552315,0.13885154,1622.6,1622.3,12.78887803]
[1744679552517,0.13885154,1622.6,1622.4,6.22529738]
[1744679552740,1.1716745,1623.0,1622.6,0.79]
[1744679552890,7.3332645,1623.0,1622.6,6.95291]
[1744679553089,7.3331245,1623.0,1622.6,6.95294]
[1744679553320,13.4947745,1623.0,1622.6,6.95294]
[1744679553644,6.16187,1622.9,1622.6,7.648234]
[1744679554837,13.4948245,1623.0,1622.6,7.648074]
[1744679555716,7.3331545,1623.0,1622.6,7.648074]
[1744679555921,0.4022745,1623.0,1622.8,6.16203]
[1744679557196,0.4022745,1623.0,1622.8,6.16201]